bitfinex/quotes_BTCUSD_20250530
["timestamp","ask_amount","ask_price","bid_price","bid_amount"]
[1748573902873,0.14876828,105950.0,105940.0,1.17259579]
[1748573902874,0.21708244,105950.0,105940.0,1.17259579]
[1748573903135,0.01887601,105950.0,105940.0,1.44601629]
[1748573903339,0.20764429,105950.0,105940.0,1.67663842]
[1748573903562,0.20764429,105950.0,105940.0,2.06719965]
[1748573903776,0.20764429,105950.0,105940.0,1.96432165]
[1748573903983,0.20764429,105950.0,105940.0,1.56432165]
[1748573904188,0.01887548,105950.0,105940.0,0.65517933]
[1748573904404,0.01887548,105950.0,105940.0,3.24371133]
[1748573904405,0.03775185,105950.0,105940.0,3.24371133]
[1748573904587,0.18875047,105960.0,105950.0,0.56152]
[1748573904588,0.18650232,105960.0,105950.0,0.56152]
[1748573904826,0.18650232,105960.0,105950.0,0.6557591]
[1748573905870,0.18650232,105960.0,105950.0,0.6567591]
[1748573906287,0.18650232,105960.0,105950.0,0.6392701]
[1748573906494,0.18650232,105960.0,105950.0,0.3181141]
[1748573906706,0.18650232,105960.0,105950.0,0.3201141]
[1748573907121,0.18650232,105960.0,105950.0,0.32011187]
[1748573907328,0.18650232,105960.0,105950.0,0.31692895]
[1748573907532,0.18650232,105960.0,105950.0,0.32011187]
[1748573908494,0.18650232,105960.0,105950.0,0.31692895]
[1748573910395,0.18650232,105960.0,105950.0,0.28590195]
[1748573910602,0.18650232,105960.0,105950.0,0.56473795]
[1748573911549,0.14650232,105960.0,105950.0,0.56473795]
[1748573913345,0.14650232,105960.0,105950.0,0.53165495]
[1748573913960,0.14650232,105960.0,105950.0,0.41749395]
[1748573918259,0.14650232,105960.0,105950.0,0.41741395]
[1748573923355,0.14650232,105960.0,105950.0,0.12505395]
[1748573923561,0.14650232,105960.0,105950.0,0.41733395]
[1748573928612,0.14650232,105960.0,105950.0,0.42051117]
[1748573930440,0.14650232,105960.0,105950.0,0.89940117]
[1748573930914,0.14650232,105960.0,105950.0,0.99004117]
[1748573931536,0.14650232,105960.0,105950.0,0.73775525]
[1748573931938,0.14650232,105960.0,105950.0,0.71848725]
[1748573932555,0.18875047,105970.0,105950.0,0.9229545]
[1748573932772,0.26471306,105980.0,105960.0,0.8409611]
[1748573932773,0.15818674,105980.0,105960.0,0.8409611]
[1748573932979,0.21702108,105980.0,105970.0,1.26587373]
[1748573933182,0.22645682,105980.0,105970.0,1.01493562]
[1748573933403,0.21702162,105980.0,105970.0,0.95943071]
[1748573933810,0.21702162,105980.0,105970.0,0.63239788]
[1748573933811,0.20758615,105980.0,105970.0,0.63239788]
[1748573934011,0.20758615,105980.0,105970.0,0.64183451]
[1748573934213,0.20758615,105980.0,105970.0,0.53390051]
[1748573934421,0.20758615,105980.0,105970.0,0.73877651]
[1748573934624,0.20758615,105980.0,105970.0,0.75139446]
[1748573935048,0.20758615,105980.0,105970.0,0.94012712]
[1748573935251,0.20758615,105980.0,105970.0,1.46058233]
[1748573935472,0.20758615,105980.0,105970.0,1.28598333]
[1748573935681,0.20758615,105980.0,105970.0,1.28375425]
[1748573936297,0.20758615,105980.0,105970.0,1.52732287]
[1748573936504,0.20758615,105980.0,105970.0,1.31971704]
[1748573936708,0.19815059,105980.0,105970.0,1.14947503]
[1748573937358,0.19815059,105980.0,105970.0,1.37894523]
[1748573937575,0.19815059,105980.0,105970.0,1.36055023]
[1748573937777,0.19815059,105980.0,105970.0,1.31715369]
[1748573938190,0.19815059,105980.0,105970.0,0.91715369]
[1748573938794,0.19815059,105980.0,105970.0,1.31715369]
[1748573939267,0.18871485,105980.0,105970.0,0.6753814]
[1748573939589,0.18871485,105980.0,105970.0,0.68481803]
[1748573940778,0.18871485,105980.0,105970.0,0.68481595]
[1748573941761,0.18871485,105980.0,105970.0,0.69425249]
[1748573942220,0.18871485,105980.0,105970.0,0.68481595]
[1748573942632,0.18871485,105980.0,105970.0,0.88298515]
[1748573943245,0.18871485,105980.0,105970.0,0.87357153]
[1748573943618,0.18871485,105980.0,105970.0,0.66596523]
[1748573944845,0.18871485,105980.0,105970.0,0.67540186]
[1748573945453,0.18871485,105980.0,105970.0,0.20885038]
[1748573945635,0.18871485,105980.0,105970.0,0.52811416]
[1748573946056,0.18871485,105980.0,105970.0,4.41442316]
[1748573946265,0.18871485,105980.0,105970.0,4.63974588]
[1748573946484,0.19815059,105980.0,105970.0,4.63974606]
[1748573947592,0.19815059,105980.0,105970.0,4.64918251]
[1748573947875,0.01887103,105980.0,105970.0,4.6680555]
[1748573948089,0.03774197,105980.0,105970.0,4.66805568]
[1748573948299,0.22645682,105980.0,105970.0,4.66805568]
[1748573948515,0.21702162,105980.0,105970.0,4.6586195]
[1748573948923,0.20758615,105980.0,105970.0,4.6586195]
[1748573949135,0.20758615,105980.0,105970.0,5.0586195]
[1748573949983,0.19815059,105980.0,105970.0,5.03974678]
[1748573950456,0.19815059,105980.0,105970.0,5.04918323]
[1748573951389,0.19815059,105980.0,105970.0,5.03031024]
[1748573951619,0.19815059,105980.0,105970.0,5.03974678]
[1748573952073,0.19815059,105980.0,105970.0,5.04918298]
[1748573952663,0.19815059,105980.0,105970.0,4.64918298]
[1748573953122,0.19815059,105980.0,105970.0,5.04918298]
[1748573954553,0.19815059,105980.0,105970.0,5.05861934]
[1748573955399,0.19815059,105980.0,105970.0,5.06805552]
[1748573956033,0.18875047,105990.0,105980.0,0.20381485]
[1748573956262,0.18875047,105990.0,105980.0,0.3101688]
[1748573956897,0.18875047,105990.0,105980.0,0.31960454]
[1748573957314,0.35907922,106000.0,105980.0,0.32904019]
[1748573957534,0.0094344,105990.0,105980.0,0.2671401]
[1748573957739,0.02830312,105990.0,105980.0,1.29235602]
[1748573957953,0.02830312,105990.0,105980.0,1.63353813]
[1748573958376,0.22643501,105990.0,105980.0,0.88106673]
[1748573958582,0.22643501,105990.0,105980.0,0.38815247]
[1748573958583,0.22406647,105990.0,105980.0,0.38815247]
[1748573958816,0.20756647,105990.0,105980.0,0.38815247]
[1748573959030,0.20756647,105990.0,105980.0,0.38297395]
[1748573959467,0.20756647,105990.0,105980.0,0.09423247]
[1748573959697,0.20756647,105990.0,105980.0,0.38815247]
[1748573959904,0.20756647,105990.0,105980.0,0.39115247]
[1748573960149,0.20756647,105990.0,105980.0,0.38815247]
[1748573960349,0.20756647,105990.0,105980.0,0.38615247]
[1748573960583,0.20756647,105990.0,105980.0,0.38615672]
[1748573960790,0.24046647,105990.0,105980.0,0.29692]
[1748573963466,0.24046647,105990.0,105980.0,0.005]
[1748573963675,0.24046647,105990.0,105980.0,0.29688]
[1748573965582,0.58046647,105990.0,105980.0,0.005]
[1748573966239,0.58046647,105990.0,105980.0,0.003]
[1748573966661,0.23940529,105970.0,105960.0,0.29188]
[1748573966883,0.19818781,105960.0,105950.0,0.93977678]
[1748573967096,0.19818781,105960.0,105950.0,1.32271073]
[1748573967741,0.19818781,105960.0,105950.0,1.03083073]
[1748573967946,0.19818781,105960.0,105950.0,1.32271073]
[1748573968978,0.19818781,105960.0,105950.0,1.32670791]
[1748573969167,0.19818781,105960.0,105950.0,1.32970791]
[1748573969619,0.19818781,105960.0,105950.0,1.32652379]
[1748573969822,0.19818781,105960.0,105950.0,1.34232379]
[1748573971075,0.19818781,105960.0,105950.0,0.94232379]
[1748573972316,0.19818781,105960.0,105950.0,0.95832379]
[1748573972727,0.19818781,105960.0,105950.0,0.94232379]
[1748573975538,0.19818781,105960.0,105950.0,0.53484379]
[1748573975949,0.19818781,105960.0,105950.0,0.55144379]
[1748573978581,0.19818781,105960.0,105950.0,0.75277279]
[1748573978757,0.20760547,105970.0,105960.0,0.23028781]
[1748573978958,0.18873029,105980.0,105970.0,0.0321]
[1748573979235,0.18873029,105980.0,105970.0,0.41735286]
[1748573979371,0.18873029,105980.0,105970.0,0.41499395]
[1748573979972,0.18873029,105980.0,105970.0,0.38489395]
[1748573981905,0.15073029,105980.0,105970.0,0.38489395]
[1748573988482,0.15073029,105980.0,105970.0,0.09305395]
[1748573988682,0.15073029,105980.0,105970.0,0.38481395]
[1748573988835,0.11973029,105980.0,105970.0,0.38481395]
[1748573990072,0.11973029,105980.0,105970.0,0.41691395]
[1748573990788,0.11973029,105980.0,105970.0,0.12515395]
[1748573990995,0.11973029,105980.0,105970.0,0.50723395]
[1748573996346,0.11973029,105980.0,105970.0,0.41687395]
[1748574001190,0.11973029,105980.0,105970.0,0.41683395]
[1748574006577,0.11973029,105980.0,105970.0,0.42001909]
[1748574009557,0.11973029,105980.0,105970.0,0.42002306]
[1748574010186,0.11973029,105980.0,105970.0,0.42968531]
[1748574012429,0.11973029,105980.0,105970.0,0.42002306]
[1748574013286,0.11973029,105980.0,105970.0,1.40420299]
[1748574013505,0.12916603,105980.0,105970.0,0.99852962]
[1748574013724,0.12916603,105980.0,105970.0,1.59350971]
[1748574013932,0.12916603,105980.0,105970.0,1.60273062]
[1748574015895,0.13860168,105980.0,105970.0,1.60273062]
[1748574016104,0.13860168,105980.0,105970.0,1.61216707]
[1748574016330,0.12916603,105980.0,105970.0,1.61216707]
[1748574016544,0.11973029,105980.0,105970.0,1.40448142]
[1748574016752,0.11973029,105980.0,105970.0,1.41391796]
[1748574016963,0.11973029,105980.0,105970.0,1.60265062]
[1748574018185,0.11973029,105980.0,105970.0,1.60065062]
[1748574018574,0.11973029,105980.0,105970.0,1.40748142]
[1748574018816,0.11973029,105980.0,105970.0,1.38415342]
[1748574019026,0.11973029,105980.0,105970.0,1.33880542]
[1748574020037,0.11973029,105980.0,105970.0,1.32936879]
[1748574022818,0.11973029,105980.0,105970.0,1.29060879]
[1748574023240,0.11973029,105980.0,105970.0,0.99900879]
[1748574023480,0.11973029,105980.0,105970.0,1.29056879]
[1748574023919,0.11973029,105980.0,105970.0,1.22101679]
[1748574024573,0.11973029,105980.0,105970.0,0.15614479]
[1748574024814,0.11973029,105980.0,105970.0,0.09924224]
[1748574025014,0.15033029,105980.0,105970.0,0.39080224]
[1748574025448,0.15033029,105980.0,105970.0,0.09924224]
[1748574025663,0.15033029,105980.0,105970.0,0.38761395]
[1748574025877,0.15033029,105980.0,105970.0,0.005]
[1748574026100,0.15033029,105980.0,105970.0,0.29656]
[1748574026306,0.15033029,105980.0,105970.0,0.005]
[1748574028028,0.15033029,105980.0,105970.0,0.29656]
[1748574028247,0.15033029,105980.0,105970.0,0.005]
[1748574037256,0.49033029,105980.0,105970.0,0.005]
[1748574037464,0.58138424,105980.0,105970.0,0.005]
[1748574037891,0.96314424,105980.0,105970.0,0.005]
[1748574038305,0.97314424,105980.0,105970.0,0.002]
[1748574038724,0.20764447,105950.0,105940.0,0.02]
[1748574038938,0.20764447,105950.0,105940.0,0.0200927]
[1748574040161,0.20764447,105950.0,105940.0,0.0240927]
[1748574040599,0.23954447,105950.0,105940.0,0.0240927]
[1748574041229,0.22404447,105950.0,105940.0,0.0240927]
[1748574042036,0.22404447,105950.0,105940.0,0.0270927]
[1748574042572,0.22404447,105950.0,105940.0,0.0200927]
[1748574042750,0.22404447,105950.0,105940.0,0.0220927]
[1748574042967,0.18404447,105950.0,105940.0,0.0250927]
[1748574043799,0.16764447,105950.0,105940.0,0.0250927]
[1748574043988,0.18652066,105950.0,105940.0,0.0250927]
[1748574045043,0.18652066,105950.0,105940.0,0.0578927]
[1748574045296,0.18652066,105950.0,105940.0,0.0250927]
[1748574046937,0.18652066,105950.0,105940.0,0.0578927]
[1748574051268,0.14652066,105950.0,105940.0,0.0578927]
[1748574053348,0.14652066,105950.0,105940.0,0.14894665]
[1748574055208,0.14652066,105950.0,105940.0,0.13244665]
[1748574056615,0.14652066,105950.0,105940.0,0.14834665]
[1748574057367,0.14652066,105950.0,105940.0,0.13244665]
[1748574058018,0.14652066,105950.0,105940.0,0.14834665]
[1748574058442,0.10652066,105950.0,105940.0,0.14834665]
[1748574064512,0.12212066,105950.0,105940.0,0.0250927]
[1748574066386,0.10652066,105950.0,105940.0,0.0250927]
[1748574067016,0.12302066,105950.0,105940.0,0.0250927]
[1748574068263,0.10652066,105950.0,105940.0,0.0250927]
[1748574071730,0.10652066,105950.0,105940.0,0.14864665]
[1748574071955,0.10652066,105950.0,105940.0,0.15183421]
[1748574072380,0.06652066,105950.0,105940.0,0.14864665]
[1748574073018,0.06652066,105950.0,105940.0,0.35241923]
[1748574073226,0.0570827,105950.0,105940.0,0.16637506]
[1748574073452,0.0570827,105950.0,105940.0,0.35516116]
[1748574073664,0.19820316,105960.0,105950.0,0.24474727]
[1748574073883,0.20764032,105960.0,105950.0,0.53626745]
[1748574074100,0.21704121,105970.0,105960.0,1.00571466]
[1748574074329,0.20760565,105970.0,105960.0,0.2544338]
[1748574074542,0.20760565,105970.0,105960.0,0.14078322]
[1748574074759,0.20760565,105970.0,105960.0,0.54078322]
[1748574074967,0.20760565,105970.0,105960.0,0.55033295]
[1748574075172,0.20760565,105970.0,105960.0,0.54078322]
[1748574076067,0.20760565,105970.0,105960.0,0.14078322]
[1748574076484,0.20760565,105970.0,105960.0,0.14178322]
[1748574077740,0.20760565,105970.0,105960.0,0.1385948]
[1748574079464,0.16760565,105970.0,105960.0,0.1385948]
[1748574081023,0.16760565,105970.0,105960.0,0.41553395]
[1748574081235,0.16760565,105970.0,105960.0,0.39953395]
[1748574081863,0.16760565,105970.0,105960.0,0.41503395]
[1748574082236,0.16760565,105970.0,105960.0,0.001]
[1748574082436,0.19890565,105970.0,105960.0,0.001]
[1748574082638,0.53890565,105970.0,105960.0,0.001]
[1748574086598,0.49890565,105970.0,105960.0,0.001]
[1748574087419,0.46760565,105970.0,105960.0,0.001]
[1748574088931,0.46760565,105970.0,105960.0,0.0328]
[1748574088932,0.12760565,105970.0,105960.0,0.0328]
[1748574092105,0.12760565,105970.0,105960.0,0.0174]
[1748574092307,0.12760565,105970.0,105960.0,0.001]
[1748574093550,0.08760565,105970.0,105960.0,0.001]
[1748574094756,0.08760565,105970.0,105960.0,0.0327]
[1748574099906,0.08760565,105970.0,105960.0,0.12375395]
[1748574100745,0.05460565,105970.0,105960.0,0.12375395]
[1748574108097,0.00943636,105970.0,105960.0,0.12375395]
[1748574108309,0.19816902,105970.0,105960.0,0.12375395]
[1748574114107,0.19816902,105970.0,105960.0,0.14148256]
[1748574117479,0.19816902,105970.0,105960.0,0.12694171]
[1748574117716,0.19816902,105970.0,105960.0,0.09524171]
[1748574117910,0.22896902,105970.0,105960.0,0.001]
[1748574121877,0.19531968,105970.0,105960.0,0.001]
[1748574122306,0.15531968,105970.0,105960.0,0.001]
[1748574122948,0.17061968,105970.0,105960.0,0.001]
[1748574126581,0.15531968,105970.0,105960.0,0.001]
[1748574129236,0.14741968,105970.0,105960.0,0.001]
[1748574129867,0.13141968,105970.0,105960.0,0.001]
[1748574130040,0.11531968,105970.0,105960.0,0.001]
[1748574132818,0.13151968,105970.0,105960.0,0.001]
[1748574133749,0.14701968,105970.0,105960.0,0.001]
[1748574140251,0.13151968,105970.0,105960.0,0.001]
[1748574144098,0.11531968,105970.0,105960.0,0.001]
[1748574147982,0.11531968,105970.0,105960.0,0.0165]
[1748574148196,0.11531968,105970.0,105960.0,0.001]
[1748574149274,0.57807363,105970.0,105960.0,0.001]
[1748574153373,0.56227363,105970.0,105960.0,0.001]
[1748574155359,0.54637363,105970.0,105960.0,0.001]
[1748574157951,0.5557922,105970.0,105960.0,0.001]
[1748574159278,0.5709922,105970.0,105960.0,0.001]
[1748574159696,0.5864922,105970.0,105960.0,0.001]
[1748574160333,0.20764447,105950.0,105940.0,0.0316927]
[1748574161790,0.20764447,105950.0,105940.0,0.0346927]
[1748574162003,0.20764447,105950.0,105940.0,0.0356927]
[1748574164874,0.54764447,105950.0,105940.0,0.0040927]
[1748574165040,0.54764447,105950.0,105940.0,0.01291833]
[1748574165731,0.54764447,105950.0,105940.0,0.0129191]
[1748574165877,0.54764447,105950.0,105940.0,0.0089192]
[1748574166058,0.54764447,105950.0,105940.0,0.00891947]
[1748574166259,0.54764447,105950.0,105940.0,0.0010927]
[1748574167917,0.67929842,105950.0,105940.0,0.0010927]
[1748574168129,1.16719842,105950.0,105940.0,0.0010927]
[1748574168359,0.23828368,105930.0,105920.0,0.0064994]
[1748574168561,0.41933763,105930.0,105920.0,0.0064994]
[1748574168841,0.71053763,105930.0,105920.0,0.0064994]
[1748574169772,0.72053763,105930.0,105920.0,0.0064994]
[1748574171052,0.72153763,105930.0,105920.0,0.0064994]
[1748574172338,0.74046604,105930.0,105920.0,0.0064994]
[1748574174974,0.31866604,105930.0,105920.0,0.0064994]
[1748574175177,0.20868368,105930.0,105920.0,0.0374994]
[1748574175390,0.54868368,105930.0,105920.0,0.0374994]
[1748574177494,0.20868368,105930.0,105920.0,0.12855335]
[1748574177896,0.20768368,105930.0,105920.0,0.12855335]
[1748574178310,0.16768368,105930.0,105920.0,0.12855335]
[1748574178531,0.18656344,105930.0,105920.0,0.12855335]
[1748574178731,0.18656344,105930.0,105920.0,0.13091347]
[1748574179150,0.18656344,105930.0,105920.0,0.12955335]
[1748574179333,0.18656344,105930.0,105920.0,0.13191338]
[1748574180398,0.18656344,105930.0,105920.0,0.12955335]
[1748574182020,0.1860915,105930.0,105920.0,0.12955335]
[1748574183266,0.1860915,105930.0,105920.0,0.31123035]
[1748574183713,0.01887976,105930.0,105920.0,0.518934]
[1748574183919,0.20766425,105940.0,105930.0,1.14664392]
[1748574184131,0.20766425,105940.0,105930.0,0.88360495]
[1748574184339,0.19822531,105940.0,105930.0,1.02321395]
[1748574184552,0.19822531,105940.0,105930.0,0.63654495]
[1748574184760,0.19822531,105940.0,105930.0,0.41395395]
[1748574184965,0.19822531,105940.0,105930.0,0.54846695]
[1748574185387,0.15822531,105940.0,105930.0,0.54846695]
[1748574185798,0.15822531,105940.0,105930.0,0.55984736]
[1748574186023,0.15822531,105940.0,105930.0,0.55046695]
[1748574186220,0.15822531,105940.0,105930.0,0.41595395]
[1748574186631,0.15822531,105940.0,105930.0,0.54765395]
[1748574186843,0.15822531,105940.0,105930.0,0.54865395]
[1748574187052,0.15822531,105940.0,105930.0,0.41695395]
[1748574187885,0.15822531,105940.0,105930.0,0.81695395]
[1748574191622,0.15822531,105940.0,105930.0,0.52575395]
[1748574191845,0.15822531,105940.0,105930.0,0.81691395]
[1748574192576,0.11822531,105940.0,105930.0,0.81691395]
[1748574193926,0.11822531,105940.0,105930.0,0.52575395]
[1748574194159,0.11822531,105940.0,105930.0,2.06659095]
[1748574194382,0.11822531,105940.0,105930.0,1.96644895]
[1748574194625,0.11822531,105940.0,105930.0,1.91930295]
[1748574194835,0.11822531,105940.0,105930.0,1.21339395]
[1748574195043,0.11822531,105940.0,105930.0,1.11866595]
[1748574196753,0.11822531,105940.0,105930.0,1.05410495]
[1748574196959,0.11822531,105940.0,105930.0,0.97425995]
[1748574198091,9.25e-05,105950.0,105940.0,0.2195861]
[1748574198323,0.19829874,105950.0,105940.0,2.18626258]
[1748574198529,0.19829874,105950.0,105940.0,1.4489681]
[1748574198737,0.18886078,105950.0,105940.0,1.9101872]
[1748574199175,0.18886078,105950.0,105940.0,1.4621921]
[1748574199404,0.18886078,105950.0,105940.0,0.7430638]
[1748574199612,0.14886078,105950.0,105940.0,0.8052168]
[1748574199818,0.14886078,105950.0,105940.0,0.7369828]
[1748574200272,0.14886078,105950.0,105940.0,0.7433638]
[1748574200478,0.14886078,105950.0,105940.0,0.5393948]
[1748574200691,0.14886078,105950.0,105940.0,0.52485395]
[1748574200937,0.14886078,105950.0,105940.0,0.81593395]
[1748574201358,0.14886078,105950.0,105940.0,0.41593395]
[1748574201589,0.14886078,105950.0,105940.0,0.12485395]
[1748574201800,0.14886078,105950.0,105940.0,0.81593395]
[1748574202246,0.14886078,105950.0,105940.0,0.41593395]
[1748574206757,0.10886078,105950.0,105940.0,0.41593395]
[1748574209350,0.01887601,105950.0,105940.0,1.04983575]
[1748574209591,0.02831433,105950.0,105940.0,1.04983575]
[1748574209878,0.21708261,105950.0,105940.0,1.44462598]
[1748574210346,0.21708261,105950.0,105940.0,1.43518686]
[1748574210586,0.20764474,105950.0,105940.0,1.24640076]
[1748574210828,0.1982066,105950.0,105940.0,0.83809076]
[1748574211070,0.1982066,105950.0,105940.0,0.83386168]
[1748574211548,0.1982066,105950.0,105940.0,0.12824083]
[1748574211790,0.1982066,105950.0,105940.0,0.11324083]
[1748574212005,0.1982066,105950.0,105940.0,0.09405395]
[1748574212723,0.1982066,105950.0,105940.0,0.003]
[1748574214013,0.1898066,105950.0,105940.0,0.003]
[1748574214015,0.5298066,105950.0,105940.0,0.003]
[1748574214674,0.5298066,105950.0,105940.0,0.002]
[1748574215437,0.20768368,105930.0,105920.0,0.0064994]
[1748574215683,0.20768368,105930.0,105920.0,0.12915335]
[1748574216166,0.00943975,105930.0,105920.0,0.50103956]
[1748574216428,0.20766416,105940.0,105930.0,1.0330097]
[1748574216661,0.03775595,105940.0,105930.0,1.1909015]
[1748574216905,0.01887745,105940.0,105930.0,1.23586962]
[1748574217128,0.21708297,105950.0,105940.0,1.68640916]
[1748574217367,0.21708297,105950.0,105940.0,1.6700195]
[1748574217593,0.21708297,105950.0,105940.0,1.6836877]
[1748574217850,0.21708297,105950.0,105940.0,1.67945862]
[1748574218089,0.21708297,105950.0,105940.0,1.6794588]
[1748574218320,0.21708297,105950.0,105940.0,1.6804588]
[1748574218571,0.20764483,105950.0,105940.0,0.62145219]
[1748574218795,0.20764483,105950.0,105940.0,0.56032719]
[1748574219023,0.20764483,105950.0,105940.0,0.56003649]
[1748574219234,0.20764483,105950.0,105940.0,0.96203649]
[1748574219464,0.20764483,105950.0,105940.0,0.9714757]
[1748574219683,0.20764483,105950.0,105940.0,0.96203649]
[1748574219896,0.20764483,105950.0,105940.0,0.9714757]
[1748574220346,0.20764483,105950.0,105940.0,1.15082259]
[1748574220763,0.16764483,105950.0,105940.0,1.15082259]
[1748574220966,0.16764483,105950.0,105940.0,1.1602618]
[1748574221387,0.16764483,105950.0,105940.0,1.1476352]
[1748574221627,0.16764483,105950.0,105940.0,1.15082196]
[1748574222042,0.16764483,105950.0,105940.0,1.16026117]
[1748574222488,0.16764483,105950.0,105940.0,1.12764666]
[1748574222718,0.16764483,105950.0,105940.0,1.04265449]
[1748574222959,0.16764483,105950.0,105940.0,1.15928349]
[1748574223205,0.16764483,105950.0,105940.0,1.16872279]
[1748574224551,0.16764483,105950.0,105940.0,1.178162]
[1748574225594,0.16764483,105950.0,105940.0,1.15928349]
[1748574225818,0.16764483,105950.0,105940.0,1.04265449]
[1748574226037,0.16764483,105950.0,105940.0,0.83928754]
[1748574226244,0.16764483,105950.0,105940.0,0.89992464]
[1748574226457,0.16764483,105950.0,105940.0,0.76215664]
[1748574228148,0.12764483,105950.0,105940.0,0.76215664]
[1748574229731,0.12764483,105950.0,105940.0,0.78437364]
[1748574230375,0.12764483,105950.0,105940.0,0.59558754]
[1748574230586,0.12764483,105950.0,105940.0,0.28798754]
[1748574230812,0.12764483,105950.0,105940.0,0.42268754]
[1748574231090,0.12764483,105950.0,105940.0,0.43878754]
[1748574233477,0.12764483,105950.0,105940.0,0.42268754]
[1748574233699,0.12764483,105950.0,105940.0,0.40748754]
[1748574233910,0.12764483,105950.0,105940.0,0.4074878]
[1748574234554,0.12764483,105950.0,105940.0,0.38824097]
[1748574234765,0.49974483,105950.0,105940.0,0.09405395]
[1748574234979,0.48344483,105950.0,105940.0,0.09405395]
[1748574235190,0.44344483,105950.0,105940.0,0.09405395]
[1748574235622,0.45974483,105950.0,105940.0,0.003]
[1748574242155,0.54962483,105950.0,105940.0,0.003]
[1748574242381,0.50962483,105950.0,105940.0,0.003]
[1748574242590,0.50962483,105950.0,105940.0,0.001]
[1748574242800,0.50962483,105950.0,105940.0,0.002]
[1748574243022,0.41974483,105950.0,105940.0,0.001]
[1748574243241,0.38764483,105950.0,105940.0,0.001]
[1748574244327,0.04764483,105950.0,105940.0,0.0322]
[1748574245837,0.04764483,105950.0,105940.0,0.001]
[1748574246078,0.06324483,105950.0,105940.0,0.001]
[1748574246544,0.07934483,105950.0,105940.0,0.001]
[1748574249653,0.41934483,105950.0,105940.0,0.001]
[1748574253462,0.40324483,105950.0,105940.0,0.001]
[1748574253695,0.38764483,105950.0,105940.0,0.001]
[1748574257110,0.40364483,105950.0,105940.0,0.001]
[1748574258778,0.38764483,105950.0,105940.0,0.001]
[1748574261660,0.40274483,105950.0,105940.0,0.001]
[1748574262840,0.38764483,105950.0,105940.0,0.001]
[1748574271083,0.38764483,105950.0,105940.0,0.0169]
[1748574271501,0.38764483,105950.0,105940.0,0.0327]
[1748574272757,0.38764483,105950.0,105940.0,0.0169]
[1748574274195,0.38764483,105950.0,105940.0,0.0325]
[1748574275432,0.38764483,105950.0,105940.0,0.0169]
[1748574275634,0.38764483,105950.0,105940.0,0.001]
[1748574279810,0.38764483,105950.0,105940.0,0.0168]
[1748574282411,0.38764483,105950.0,105940.0,0.0328]
[1748574285709,0.38764483,105950.0,105940.0,0.001]
[1748574286216,0.51009878,105950.0,105940.0,0.001]
[1748574287406,0.20768368,105930.0,105920.0,0.0064994]
[1748574287659,0.22278368,105930.0,105920.0,0.0064994]
[1748574288142,0.56278368,105930.0,105920.0,0.0064994]
[1748574288379,0.57778368,105930.0,105920.0,0.0064994]
[1748574289435,0.5870404,105930.0,105920.0,0.0074994]
[1748574289643,0.20768368,105930.0,105920.0,0.0415994]
[1748574290055,0.20768368,105930.0,105920.0,0.04478548]
[1748574290332,0.20768368,105930.0,105920.0,0.0415994]
[1748574294407,0.20768368,105930.0,105920.0,0.13265335]
[1748574294828,0.20768368,105930.0,105920.0,0.13583505]
[1748574295246,0.19824393,105930.0,105920.0,0.13583505]
[1748574295677,0.19824393,105930.0,105920.0,0.13819506]
[1748574295892,0.18880146,105940.0,105930.0,0.23004402]
[1748574296111,0.18880146,105940.0,105930.0,1.36600684]
[1748574296527,0.19824067,105940.0,105930.0,1.38488677]
[1748574296735,0.20767961,105940.0,105930.0,1.39855568]
[1748574297162,0.20767961,105940.0,105930.0,1.39955568]
[1748574297370,0.20767961,105940.0,105930.0,1.37749391]
[1748574297587,0.20767961,105940.0,105930.0,1.3796742]
[1748574298012,0.20767961,105940.0,105930.0,1.38911412]
[1748574298219,0.20767961,105940.0,105930.0,1.3826742]
[1748574298425,0.20767961,105940.0,105930.0,1.39211412]
[1748574298641,0.20767961,105940.0,105930.0,1.40155395]
[1748574298849,0.20767961,105940.0,105930.0,1.39837366]
[1748574299055,0.02831665,105940.0,105930.0,3.66377923]
[1748574299275,0.02831665,105940.0,105930.0,3.52750723]
[1748574299500,0.00943841,105950.0,105940.0,0.87581185]
[1748574299703,0.00943841,105950.0,105940.0,1.26104507]
[1748574299912,0.19823885,105950.0,105940.0,1.26104507]
[1748574300756,0.19823885,105950.0,105940.0,0.57099907]
[1748574300967,0.19823885,105950.0,105940.0,0.54878307]
[1748574301587,0.19823885,105950.0,105940.0,0.54778144]
[1748574302274,0.19823885,105950.0,105940.0,0.54878144]
[1748574302481,0.19823885,105950.0,105940.0,0.55078144]
[1748574303603,0.19823885,105950.0,105940.0,0.5476038]
[1748574306534,0.14876599,105960.0,105950.0,0.0314]
[1748574306745,0.14876599,105960.0,105950.0,0.12245395]
[1748574308034,0.14876599,105960.0,105950.0,0.12345395]
[1748574308737,0.00943654,105970.0,105960.0,0.22015047]
[1748574308967,0.2170421,105970.0,105960.0,0.59526261]
[1748574309187,0.2170421,105970.0,105960.0,0.68510261]
[1748574309467,0.19816929,105970.0,105960.0,0.5183148]
[1748574311961,0.19816929,105970.0,105960.0,0.5193148]
[1748574316842,0.19816929,105970.0,105960.0,0.2278348]
[1748574317100,0.19816929,105970.0,105960.0,0.5193548]
[1748574318190,0.00943636,105970.0,105960.0,0.7175427]
[1748574318422,0.21704174,105970.0,105960.0,0.72698004]
[1748574318632,0.00943583,105970.0,105960.0,1.71684476]
[1748574318841,0.00943583,105970.0,105960.0,2.05684476]
[1748574319051,0.00943583,105970.0,105960.0,2.06000721]
[1748574319261,0.01887085,105980.0,105970.0,3.34314274]
[1748574319483,0.01887032,105980.0,105970.0,3.77419669]
[1748574319694,0.01887032,105980.0,105970.0,5.02924414]
[1748574319895,0.02830579,105980.0,105970.0,4.54263114]
[1748574320099,0.02830579,105980.0,105970.0,4.53207214]
[1748574320254,0.02830579,105980.0,105970.0,4.39419014]
[1748574320255,0.04717718,105980.0,105970.0,4.39419014]
[1748574320457,0.04717718,105980.0,105970.0,2.81538805]
[1748574320665,0.03774215,105980.0,105970.0,2.85762232]
[1748574320831,0.03774215,105980.0,105970.0,2.8670585]
[1748574321040,0.03774215,105980.0,105970.0,3.2404415]
[1748574321246,0.03774215,105980.0,105970.0,3.24987759]
[1748574321452,0.20758624,105980.0,105970.0,1.2194454]
[1748574321652,0.20758624,105980.0,105970.0,1.22888203]
[1748574321860,0.20758624,105980.0,105970.0,1.23631857]
[1748574322063,0.20758624,105980.0,105970.0,1.24031857]
[1748574322288,0.19815059,105980.0,105970.0,1.23188203]
[1748574322511,0.19815059,105980.0,105970.0,1.2224454]
[1748574322714,0.19815059,105980.0,105970.0,1.23088185]
[1748574322975,0.19815059,105980.0,105970.0,1.42905087]
[1748574323403,0.19815059,105980.0,105970.0,1.41961451]
[1748574323613,0.19815059,105980.0,105970.0,1.41961469]
[1748574323830,0.19815059,105980.0,105970.0,1.43848768]
[1748574324035,0.19815059,105980.0,105970.0,1.44992404]
[1748574324896,0.19815059,105980.0,105970.0,1.45936031]
[1748574325520,0.19815059,105980.0,105970.0,1.44048768]